lending/lending_fUSD_20240610
["ID","MTS","AMOUNT","RATE_DAILY","PERIOD"]
[329009525,1718059848585,-570.01,0.00029041,4]
[329009526,1718059848595,-500.0,0.00029041,4]
[329009527,1718059848609,-500.0,0.00029041,4]
[329009528,1718059848619,-540.88,0.00029041,4]
[329009529,1718059848630,-631.12805477,0.00029041,4]
[329009530,1718059848640,-500.0,0.00029041,4]
[329009531,1718059848651,-500.0,0.00029041,4]
[329009532,1718059848662,-500.0,0.00029041,4]
[329009533,1718059848673,-543.05,0.00029041,4]
[329009534,1718059848683,-500.0,0.00029041,4]
[329009536,1718059848694,-500.0,0.00029041,4]
[329009538,1718059848704,-500.0,0.00029041,4]
[329009540,1718059848714,-500.0,0.00029041,4]
[329009542,1718059848724,-500.0,0.00029041,4]
[329009544,1718059848734,-500.0,0.00029041,4]
[329009546,1718059848745,-302.19300176,0.00029041,4]
[329009548,1718059848755,-500.0,0.00029041,4]
[329009550,1718059848765,-500.0,0.00029041,4]
[329009552,1718059848776,-500.0,0.00029041,4]
[329009554,1718059848786,-500.0,0.00029041,4]
[329009556,1718059848796,-500.0,0.00029041,4]
[329009558,1718059848806,-500.0,0.00029041,4]
[329009560,1718059848816,-181.87,0.00029041,4]
[329009562,1718059848827,-500.0,0.00029041,4]
[329009564,1718059848837,-151.0,0.00029041,7]
[329009566,1718059848847,-151.0,0.00029041,7]
[329009568,1718059848857,-151.0,0.00029041,7]
[329009570,1718059848868,-224.707191,0.00029041,7]
[329009572,1718059848878,-561.0,0.00029041,4]
[329009574,1718059848889,-500.0,0.00029041,4]
[329009576,1718059848900,-500.0,0.00029041,4]
[329009578,1718059848911,-383.8,0.00029041,4]
[329009580,1718059848928,-531.80102812,0.00029041,4]
[329009582,1718059848939,-500.0,0.00029041,4]
[329009584,1718059848952,-584.94,0.00029041,4]
[329009586,1718059848963,-500.0,0.00029041,4]
[329009588,1718059848974,-500.0,0.00029041,4]
[329009590,1718059848985,-290.04,0.00029041,4]
[329009592,1718059848996,-500.0,0.00029041,4]
[329009594,1718059849007,-500.0,0.00029041,4]
[329009596,1718059849018,-500.0,0.00029041,4]
[329009598,1718059849029,-503.18473231,0.00029041,4]
[329009600,1718059849040,-648.57,0.00029041,4]
[329009603,1718059849052,-500.0,0.00029041,4]
[329009605,1718059849063,-500.0,0.00029041,4]
[329009606,1718059849074,-490.55,0.00029041,4]
[329009608,1718059849085,-500.0,0.00029041,4]
[329009610,1718059849096,-497.84,0.00029041,4]
[329009612,1718059849107,-500.0,0.00029041,4]
[329009614,1718059849118,-500.0,0.00029041,4]
[329009616,1718059849128,-500.0,0.00029041,4]
[329009618,1718059849139,-589.21,0.00029041,4]
[329009620,1718059849150,-500.0,0.00029041,4]
[329009622,1718059849161,-277.89419337,0.00029041,4]
[329009624,1718059849173,-500.0,0.00029041,4]
[329009626,1718059849184,-500.0,0.00029041,4]
[329009629,1718059849197,-193.45,0.00029041,4]
[329009631,1718059849207,-491.15413569,0.00029041,4]
[329009633,1718059849218,-500.0,0.00029041,4]
[329009634,1718059849229,-500.0,0.00029041,4]
[329009636,1718059849239,-500.0,0.00029041,4]
[329009639,1718059849250,-223.96,0.00029041,4]
[329009640,1718059849260,-485.92,0.00029041,4]
[329009642,1718059849271,-505.35,0.00029041,4]
[329009644,1718059849281,-518.24847792,0.00029041,4]
[329009646,1718059849292,-622.13,0.00029041,4]
[329009649,1718059849302,-500.0,0.00029041,4]
[329009650,1718059849312,-500.0,0.00029041,4]
[329009652,1718059849323,-500.0,0.00029041,4]
[329009654,1718059849333,-500.0,0.00029041,4]
[329009656,1718059849344,-500.0,0.00029041,4]
[329009658,1718059849354,-188.22,0.00029041,4]
[329009660,1718059849364,-598.59,0.00029041,4]
[329009661,1718059849376,-500.0,0.00029041,4]
[329009662,1718059849387,-186.59,0.00029041,4]
[329009663,1718059849400,-500.0,0.00029041,4]
[329009665,1718059849411,-500.0,0.00029041,4]
[329009667,1718059849421,-500.0,0.00029041,4]
[329009669,1718059849431,-500.0,0.00029041,4]
[329009671,1718059849444,-372.05,0.00029041,4]
[329009673,1718059849454,-500.0,0.00029041,4]
[329009675,1718059849465,-542.27,0.00029041,4]
[329009677,1718059849477,-500.0,0.00029041,4]
[329009679,1718059849490,-500.0,0.00029041,4]
[329009681,1718059849500,-500.0,0.00029041,4]
[329009684,1718059849516,-500.0,0.00029041,4]
[329009686,1718059849531,-500.0,0.00029041,4]
[329009688,1718059849545,-284.75,0.00029041,4]
[329009691,1718059849559,-505.62,0.00029041,4]
[329009693,1718059849572,-500.0,0.00029041,4]
[329009695,1718059849587,-500.0,0.00029041,4]
[329009698,1718059849601,-547.64,0.00029041,4]
[329009700,1718059849615,-500.0,0.00029041,4]
[329009702,1718059849630,-500.0,0.00029041,4]
[329009705,1718059849644,-500.0,0.00029041,4]
[329009707,1718059849657,-500.0,0.00029041,4]
[329009709,1718059849673,-500.0,0.00029041,4]
[329009712,1718059849687,-500.0,0.00029041,4]
[329009714,1718059849701,-428.31,0.00029041,4]
[329009717,1718059849714,-500.0,0.00029041,4]
[329009719,1718059849728,-500.0,0.00029041,4]
[329009721,1718059849741,-500.0,0.00029041,4]
[329009723,1718059849755,-496.04962757,0.00029041,4]
[329009727,1718059849785,-3.95037243,0.00029041,4]
[329009730,1718059849798,-500.0,0.00029041,4]
[329009732,1718059849811,-478.77,0.00029041,4]
[329009734,1718059849822,-507.71142985,0.00029041,4]
[329009736,1718059849836,-500.0,0.00029041,4]
[329009738,1718059849848,-500.0,0.00029041,4]
[329009741,1718059849861,-621.56,0.00029041,4]
[329009742,1718059849875,-500.0,0.00029041,4]
[329009743,1718059849888,-500.0,0.00029041,4]
[329009745,1718059849902,-500.0,0.00029041,4]
[329009747,1718059849917,-500.0,0.00029041,4]
[329009749,1718059849933,-500.0,0.00029041,4]
[329009751,1718059849946,-152.24,0.00029041,4]
[329009754,1718059849958,-500.0,0.00029041,4]
[329009756,1718059849969,-500.0,0.00029041,4]
[329009758,1718059849981,-340.98865061,0.00029041,4]
[329009760,1718059849994,-500.0,0.00029041,4]
[329009762,1718059850007,-500.0,0.00029041,4]
[329009765,1718059850022,-175.42,0.00029041,4]
[329009767,1718059850036,-500.0,0.00029041,4]
[329009769,1718059850049,-500.0,0.00029041,4]
[329009771,1718059850062,-500.0,0.00029041,4]
[329009772,1718059850076,-500.0,0.00029041,4]
[329009773,1718059850088,-513.53,0.00029041,4]
[329009774,1718059850099,-223.51,0.00029041,4]
[329009775,1718059850111,-500.0,0.00029041,4]
[329009776,1718059850123,-500.0,0.00029041,4]
[329009777,1718059850138,-500.0,0.00029041,4]
[329009778,1718059850150,-500.0,0.00029041,4]
[329009779,1718059850162,-583.76,0.00029041,4]
[329009780,1718059850175,-500.0,0.00029041,4]
[329009781,1718059850186,-634.74,0.00029041,4]
[329009782,1718059850199,-500.0,0.00029041,4]
[329009783,1718059850211,-500.0,0.00029041,4]
[329009784,1718059850223,-500.0,0.00029041,4]
[329009785,1718059850235,-500.0,0.00029041,4]
[329009786,1718059850247,-500.0,0.00029041,4]
[329009787,1718059850260,-358.26,0.00029041,4]
[329009788,1718059850271,-191.96,0.00029041,4]
[329009789,1718059850283,-500.0,0.00029041,4]
[329009790,1718059850295,-500.0,0.00029041,4]
[329009791,1718059850307,-500.0,0.00029041,4]
[329009792,1718059850319,-500.0,0.00029041,4]
[329009793,1718059850332,-500.0,0.00029041,4]
[329009794,1718059850344,-500.0,0.00029041,4]
[329009795,1718059850356,-500.0,0.00029041,4]
[329009796,1718059850368,-500.0,0.00029041,4]
[329009797,1718059850381,-500.0,0.00029041,4]
[329009798,1718059850392,-500.0,0.00029041,4]
[329009799,1718059850409,-500.0,0.00029041,4]
[329009800,1718059850422,-500.0,0.00029041,4]
[329009801,1718059850434,-500.0,0.00029041,4]
[329009802,1718059850448,-395.74,0.00029041,4]
[329009803,1718059850461,-500.0,0.00029041,4]
[329009804,1718059850474,-396.26,0.00029041,4]
[329009805,1718059850486,-500.0,0.00029041,4]
[329009806,1718059850498,-383.81,0.00029041,4]
[329009807,1718059850510,-500.0,0.00029041,4]
[329009808,1718059850522,-500.0,0.00029041,4]
[329009809,1718059850534,-150.0,0.00029041,4]
[329009810,1718059850546,-150.0,0.00029041,4]
[329009811,1718059850558,-150.0,0.00029041,4]
[329009812,1718059850571,-150.0,0.00029041,4]
[329009813,1718059850584,-290.72,0.00029041,4]
[329009814,1718059850596,-500.0,0.00029041,4]
[329009815,1718059850609,-500.0,0.00029041,4]
[329009816,1718059850621,-500.0,0.00029041,4]
[329009817,1718059850633,-500.0,0.00029041,4]
[329009818,1718059850653,-664.8,0.00029041,4]
[329009819,1718059850667,-500.0,0.00029041,4]
[329009820,1718059850681,-500.0,0.00029041,4]
[329009821,1718059850695,-500.0,0.00029041,4]
[329009822,1718059850709,-500.0,0.00029041,4]
[329009823,1718059850723,-401.68,0.00029041,4]
[329009824,1718059850736,-664.8,0.00029041,4]
[329009825,1718059850751,-664.8,0.00029041,4]
[329009826,1718059850764,-664.8,0.00029041,4]
[329009827,1718059850777,-664.8,0.00029041,4]
[329009828,1718059850790,-664.8,0.00029041,4]
[329009829,1718059850803,-664.8,0.00029041,4]
[329009830,1718059850816,-664.8,0.00029041,4]
[329009831,1718059850830,-664.8,0.00029041,4]
[329009832,1718059850843,-664.8,0.00029041,4]
[329009833,1718059850855,-500.0,0.00029041,4]
[329009834,1718059850866,-525.0,0.00029041,4]
[329009835,1718059850877,-500.0,0.00029041,4]
[329009836,1718059850887,-202.77,0.00029041,4]
[329009837,1718059850897,-500.0,0.00029041,4]
[329009838,1718059850908,-500.0,0.00029041,4]
[329009839,1718059850918,-220.047086,0.00029041,4]
[329009840,1718059850981,-337.212914,0.00029041,4]
[329009841,1718059850991,-263.43,0.00029041,4]
[329009842,1718059851002,-500.0,0.00029041,4]
[329009843,1718059851013,-559.91,0.00029041,4]
[329009844,1718059851023,-500.0,0.00029041,4]
[329009845,1718059851033,-456.97,0.00029041,4]
[329009846,1718059851044,-500.0,0.00029041,4]
[329009847,1718059851054,-500.0,0.00029041,4]
[329009848,1718059851065,-393.62914406,0.00029041,4]
[329009849,1718059851076,-500.0,0.00029041,4]
[329009850,1718059851086,-500.0,0.00029041,4]
[329009851,1718059851097,-640.76,0.00029041,4]
[329009852,1718059851305,-591.45,0.00029041,4]
[329009853,1718059851322,-500.0,0.00029041,4]
[329009854,1718059851332,-500.0,0.00029041,4]
[329009855,1718059851342,-500.0,0.00029041,4]
[329009856,1718059851352,-503.43,0.00029041,4]
[329009857,1718059851362,-500.0,0.00029041,4]
[329009858,1718059851372,-500.0,0.00029041,4]
[329009859,1718059851382,-300.06,0.00029041,4]
[329009860,1718059851393,-500.0,0.00029041,4]
[329009861,1718059851409,-464.07,0.00029041,4]
[329009862,1718059851419,-500.0,0.00029041,4]
[329009863,1718059851429,-500.0,0.00029041,4]
[329009864,1718059851441,-500.0,0.00029041,4]
[329009865,1718059851452,-513.59638693,0.00029041,4]
[329009866,1718059851461,-500.0,0.00029041,4]
[329009867,1718059851471,-500.0,0.00029041,4]
[329009868,1718059851483,-500.0,0.00029041,4]
[329009869,1718059851494,-500.0,0.00029041,4]
[329009870,1718059851505,-445.73,0.00029041,4]
[329009871,1718059851515,-500.0,0.00029041,4]
[329009872,1718059851526,-500.0,0.00029041,4]
[329009873,1718059851535,-500.0,0.00029041,4]
[329009874,1718059851545,-500.0,0.00029041,4]
[329009875,1718059851555,-500.0,0.00029041,4]
[329009876,1718059851566,-406.9,0.00029041,4]
[329009877,1718059851576,-500.0,0.00029041,4]
[329009878,1718059851586,-500.0,0.00029041,4]
[329009879,1718059851597,-500.0,0.00029041,4]
[329009880,1718059851607,-386.77,0.00029041,4]
[329009881,1718059851617,-500.0,0.00029041,4]
[329009882,1718059851627,-500.0,0.00029041,4]
[329009883,1718059851638,-500.0,0.00029041,4]
[329009884,1718059851648,-500.0,0.00029041,4]
[329009885,1718059851658,-479.43,0.00029041,4]
[329009886,1718059851667,-500.0,0.00029041,4]
[329009887,1718059851678,-500.0,0.00029041,4]
[329009888,1718059851688,-500.0,0.00029041,4]
[329009889,1718059851699,-509.32,0.00029041,4]
[329009890,1718059851710,-500.0,0.00029041,4]
[329009891,1718059851721,-585.76,0.00029041,4]
[329009892,1718059851731,-500.0,0.00029041,4]
[329009893,1718059851741,-500.0,0.00029041,4]
[329009894,1718059851752,-500.0,0.00029041,4]
[329009895,1718059851762,-476.01,0.00029041,4]
[329009896,1718059851772,-500.0,0.00029041,4]
[329009897,1718059851782,-510.46,0.00029041,4]
[329009898,1718059851794,-500.0,0.00029041,4]
[329009899,1718059851805,-500.0,0.00029041,4]
[329009900,1718059851815,-502.6331937,0.00029041,4]
[329009901,1718059851825,-500.0,0.00029041,4]
[329009902,1718059851836,-158.7,0.00029041,4]
[329009903,1718059851846,-500.0,0.00029041,4]
[329009904,1718059851856,-500.0,0.00029041,4]
[329009905,1718059851866,-500.0,0.00029041,4]
[329009906,1718059851876,-311.84,0.00029041,4]
[329009907,1718059851887,-576.63,0.00029041,4]
[329009908,1718059851897,-500.0,0.00029041,4]
[329009909,1718059851907,-394.4,0.00029041,4]
[329009910,1718059851916,-500.0,0.00029041,4]
[329009911,1718059851929,-500.0,0.00029041,4]
[329009912,1718059851939,-500.0,0.00029041,4]
[329009913,1718059851949,-409.38,0.00029041,4]
[329009914,1718059851959,-511.94619355,0.00029041,4]
[329009915,1718059851969,-500.0,0.00029041,4]
[329009916,1718059851980,-500.0,0.00029041,4]
[329009917,1718059851990,-500.0,0.00029041,4]
[329009918,1718059852002,-356.05,0.00029041,4]
[329009919,1718059852012,-500.0,0.00029041,4]
[329009920,1718059852022,-575.22,0.00029041,4]
[329009921,1718059852032,-500.0,0.00029041,4]
[329009922,1718059852042,-498.56,0.00029041,4]
[329009923,1718059852053,-500.0,0.00029041,4]
[329009924,1718059852063,-500.0,0.00029041,4]
[329009925,1718059852073,-500.0,0.00029041,4]
[329009926,1718059852084,-512.93,0.00029041,4]
[329009927,1718059852095,-500.0,0.00029041,4]
[329009928,1718059852105,-500.0,0.00029041,4]
[329009929,1718059852116,-374.39,0.00029041,4]
[329009930,1718059852130,-500.0,0.00029041,4]
[329009931,1718059852140,-500.0,0.00029041,4]
[329009932,1718059852150,-500.0,0.00029041,4]
[329009933,1718059852160,-500.0,0.00029041,4]
[329009934,1718059852171,-500.0,0.00029041,4]
[329009935,1718059852182,-500.0,0.00029041,4]
[329009936,1718059852193,-271.66,0.00029041,4]
[329009937,1718059852204,-500.0,0.00029041,4]
[329009938,1718059852214,-500.0,0.00029041,4]
[329009939,1718059852225,-500.0,0.00029041,4]
[329009940,1718059852236,-500.0,0.00029041,4]
[329009941,1718059852246,-500.0,0.00029041,4]
[329009942,1718059852256,-500.0,0.00029041,4]
[329009943,1718059852267,-500.0,0.00029041,4]
[329009944,1718059852277,-500.0,0.00029041,4]
[329009945,1718059852288,-500.0,0.00029041,4]
[329009946,1718059852298,-500.0,0.00029041,4]
[329009947,1718059852309,-514.69894332,0.00029041,4]
[329009948,1718059852320,-500.0,0.00029041,4]
[329009949,1718059852330,-568.49,0.00029041,4]
[329009950,1718059852340,-500.0,0.00029041,4]
[329009951,1718059852350,-500.0,0.00029041,4]
[329009952,1718059852361,-500.0,0.00029041,4]
[329009953,1718059852371,-500.0,0.00029041,4]
[329009954,1718059852381,-161.25,0.00029041,4]
[329009955,1718059852392,-500.0,0.00029041,4]
[329009956,1718059852406,-500.0,0.00029041,4]
[329009957,1718059852417,-500.0,0.00029041,4]
[329009958,1718059852427,-413.01,0.00029041,4]
[329009959,1718059852437,-500.0,0.00029041,4]
[329009960,1718059852451,-500.0,0.00029041,4]
[329009961,1718059852462,-500.0,0.00029041,4]
[329009962,1718059852473,-500.0,0.00029041,4]
[329009963,1718059852486,-500.0,0.00029041,4]
[329009964,1718059852496,-500.0,0.00029041,4]
[329009965,1718059852506,-444.09,0.00029041,4]
[329009966,1718059852517,-500.0,0.00029041,4]
[329009967,1718059852527,-500.0,0.00029041,4]
[329009968,1718059852537,-500.0,0.00029041,4]
[329009969,1718059852548,-160.81,0.00029041,4]
[329009970,1718059852558,-496.77973631,0.00029041,4]
[329009971,1718059852568,-500.0,0.00029041,4]
[329009972,1718059852579,-500.0,0.00029041,4]
[329009973,1718059852591,-590.71,0.00029041,4]
[329009974,1718059852601,-500.0,0.00029041,4]
[329009975,1718059852611,-500.0,0.00029041,4]
[329009976,1718059852622,-500.0,0.00029041,4]
[329009977,1718059852633,-162.29,0.00029041,4]
[329009978,1718059852643,-500.0,0.00029041,4]
[329009979,1718059852655,-342.87,0.00029041,4]
[329009980,1718059852665,-506.8029123,0.00029041,4]
[329009981,1718059852675,-500.0,0.00029041,4]
[329009982,1718059852685,-500.0,0.00029041,4]
[329009983,1718059852696,-500.0,0.00029041,4]
[329009984,1718059852706,-500.0,0.00029041,4]
[329009985,1718059852716,-500.0,0.00029041,4]
[329009986,1718059852727,-308.93,0.00029041,4]
[329009987,1718059852737,-546.22,0.00029041,4]
[329009988,1718059852747,-414.09307172,0.00029041,4]
[329009989,1718059852757,-500.0,0.00029041,4]
[329009990,1718059852768,-500.0,0.00029041,4]
[329009991,1718059852778,-500.0,0.00029041,4]
[329009992,1718059852789,-500.0,0.00029041,4]
[329009993,1718059852800,-500.0,0.00029041,4]
[329009994,1718059852810,-500.0,0.00029041,4]
[329009995,1718059852820,-500.0,0.00029041,4]
[329009996,1718059852831,-421.49,0.00029041,4]
[329009997,1718059852841,-500.0,0.00029041,4]
[329009998,1718059852851,-500.0,0.00029041,4]
[329009999,1718059852861,-500.0,0.00029041,4]
[329010000,1718059852872,-500.0,0.00029041,4]
[329010001,1718059852882,-500.0,0.00029041,4]
[329010002,1718059852892,-500.0,0.00029041,4]
[329010003,1718059852903,-286.35,0.00029041,4]
[329010004,1718059852913,-500.0,0.00029041,4]
[329010005,1718059852926,-500.0,0.00029041,4]
[329010006,1718059852936,-411.96,0.00029041,4]
[329010007,1718059852947,-500.0,0.00029041,4]
[329010008,1718059852957,-500.0,0.00029041,4]
[329010009,1718059852968,-500.0,0.00029041,4]
[329010010,1718059852979,-500.0,0.00029041,4]
[329010011,1718059852989,-500.0,0.00029041,4]
[329010012,1718059853000,-394.83,0.00029041,4]
[329010013,1718059853010,-500.0,0.00029041,4]
[329010014,1718059853020,-500.0,0.00029041,4]
[329010015,1718059853030,-261.42,0.00029041,4]
[329010016,1718059853040,-500.0,0.00029041,4]
[329010017,1718059853051,-584.13,0.00029041,4]
[329010018,1718059853061,-500.0,0.00029041,4]
[329010019,1718059853072,-500.0,0.00029041,4]
[329010020,1718059853082,-500.0,0.00029041,4]
[329010021,1718059853094,-500.0,0.00029041,4]
[329010022,1718059853109,-539.37,0.00029041,4]
[329010023,1718059853119,-500.0,0.00029041,4]
[329010024,1718059853129,-500.0,0.00029041,4]
[329010025,1718059853140,-343.82,0.00029041,4]
[329010026,1718059853150,-500.0,0.00029041,4]
[329010027,1718059853160,-500.0,0.00029041,4]
[329010028,1718059853175,-495.39,0.00029041,4]
[329010029,1718059853186,-500.0,0.00029041,4]
[329010030,1718059853197,-500.0,0.00029041,4]
[329010031,1718059853208,-332.55,0.00029041,4]
[329010032,1718059853219,-500.0,0.00029041,4]
[329010033,1718059853234,-500.0,0.00029041,4]
[329010034,1718059853246,-500.0,0.00029041,4]
[329010035,1718059853258,-221.93,0.00029041,4]
[329010036,1718059853278,-500.0,0.00029041,4]
[329010037,1718059853293,-500.0,0.00029041,4]
[329010038,1718059853308,-500.0,0.00029041,4]
[329010039,1718059853321,-500.0,0.00029041,4]
[329010040,1718059853333,-500.0,0.00029041,4]
[329010041,1718059853344,-350.05,0.00029041,4]
[329010042,1718059853355,-500.0,0.00029041,4]
[329010043,1718059853366,-500.0,0.00029041,4]
[329010044,1718059853377,-500.0,0.00029041,4]
[329010045,1718059853388,-463.81,0.00029041,4]
[329010046,1718059853403,-116.07703964,0.00029041,4]
[329010047,1718059853439,-525.37296036,0.00029041,4]
[329010048,1718059853453,-500.0,0.00029041,4]
[329010049,1718059853466,-500.0,0.00029041,4]
[329010050,1718059853479,-500.0,0.00029041,4]
[329010051,1718059853491,-198.32,0.00029041,4]
[329010052,1718059853502,-500.0,0.00029041,4]
[329010053,1718059853514,-500.0,0.00029041,4]
[329010054,1718059853524,-579.96,0.00029041,4]
[329010055,1718059853535,-500.0,0.00029041,4]
[329010056,1718059853545,-500.0,0.00029041,4]
[329010057,1718059853555,-229.46,0.00029041,4]
[329010058,1718059853567,-500.0,0.00029041,4]
[329010059,1718059853580,-504.42720941,0.00029041,4]
[329010060,1718059853591,-610.63,0.00029041,4]
[329010061,1718059853603,-500.0,0.00029041,4]
[329010062,1718059853618,-500.0,0.00029041,4]
[329010063,1718059853628,-500.0,0.00029041,4]
[329010064,1718059853639,-500.0,0.00029041,4]
[329010065,1718059853650,-500.0,0.00029041,4]
[329010066,1718059853661,-500.0,0.00029041,4]
[329010067,1718059853672,-459.05,0.00029041,4]
[329010068,1718059853683,-500.0,0.00029041,4]
[329010069,1718059853693,-489.08,0.00029041,4]
[329010070,1718059853704,-500.0,0.00029041,4]
[329010071,1718059853715,-500.0,0.00029041,4]
[329010072,1718059853725,-500.0,0.00029041,4]
[329010073,1718059853735,-500.0,0.00029041,4]
[329010074,1718059853745,-618.27,0.00029041,4]
[329010075,1718059853756,-500.0,0.00029041,4]
[329010076,1718059853766,-500.0,0.00029041,4]
[329010077,1718059853776,-500.0,0.00029041,4]
[329010078,1718059853787,-500.0,0.00029041,4]
[329010079,1718059853796,-500.0,0.00029041,4]
[329010080,1718059853806,-611.73,0.00029041,4]
[329010081,1718059853815,-500.0,0.00029041,4]
[329010082,1718059853825,-500.0,0.00029041,4]
[329010083,1718059853834,-645.77,0.00029041,4]
[329010084,1718059853844,-500.0,0.00029041,4]
[329010085,1718059853854,-534.89484189,0.00029041,4]
[329010086,1718059853864,-500.0,0.00029041,4]
[329010087,1718059853873,-500.0,0.00029041,4]
[329010088,1718059853883,-223.85,0.00029041,4]
[329010089,1718059853893,-500.0,0.00029041,4]
[329010090,1718059853903,-500.0,0.00029041,4]
[329010091,1718059853913,-500.0,0.00029041,4]
[329010092,1718059853926,-500.0,0.00029041,4]
[329010093,1718059853936,-500.0,0.00029041,4]
[329010094,1718059853946,-500.0,0.00029041,4]
[329010095,1718059853956,-500.0,0.00029041,4]
[329010096,1718059853966,-218.23,0.00029041,4]
[329010097,1718059853976,-150.73,0.00029041,4]
[329010098,1718059853987,-500.0,0.00029041,4]
[329010099,1718059853996,-539.08,0.00029041,4]
[329010100,1718059854006,-500.0,0.00029041,4]
[329010101,1718059854017,-538.86,0.00029041,4]
[329010102,1718059854027,-500.0,0.00029041,4]
[329010103,1718059854037,-500.0,0.00029041,4]
[329010104,1718059854047,-500.0,0.00029041,4]
[329010105,1718059854057,-500.0,0.00029041,4]
[329010106,1718059854067,-288.43,0.00029041,4]
[329010107,1718059854077,-500.0,0.00029041,4]
[329010108,1718059854087,-500.0,0.00029041,4]
[329010109,1718059854097,-500.0,0.00029041,4]
[329010110,1718059854107,-512.45695198,0.00029041,4]
[329010111,1718059854118,-500.0,0.00029041,4]
[329010112,1718059854128,-500.0,0.00029041,4]
[329010113,1718059854139,-500.0,0.00029041,4]
[329010114,1718059854149,-500.0,0.00029041,4]
[329010115,1718059854160,-500.0,0.00029041,4]
[329010116,1718059854171,-500.0,0.00029041,4]
[329010117,1718059854182,-500.0,0.00029041,4]
[329010118,1718059854192,-536.42,0.00029041,4]
[329010119,1718059854203,-500.0,0.00029041,4]
[329010120,1718059854213,-500.0,0.00029041,4]
[329010121,1718059854222,-500.0,0.00029041,4]
[329010122,1718059854232,-500.0,0.00029041,4]
[329010123,1718059854242,-500.0,0.00029041,4]
[329010124,1718059854252,-500.0,0.00029041,4]
[329010125,1718059854262,-500.0,0.00029041,4]
[329010126,1718059854272,-500.0,0.00029041,4]
[329010127,1718059854285,-519.14,0.00029041,4]
[329010128,1718059854295,-500.0,0.00029041,4]
[329010129,1718059854305,-174.55,0.00029041,4]
[329010130,1718059854315,-500.0,0.00029041,4]
[329010131,1718059854325,-500.0,0.00029041,4]
[329010132,1718059854335,-500.0,0.00029041,4]
[329010133,1718059854345,-500.0,0.00029041,4]
[329010134,1718059854356,-482.84,0.00029041,4]
[329010135,1718059854366,-500.0,0.00029041,4]
[329010136,1718059854376,-500.0,0.00029041,4]
[329010137,1718059854386,-500.0,0.00029041,4]
[329010138,1718059854396,-457.57,0.00029041,4]
[329010139,1718059854409,-500.0,0.00029041,4]
[329010140,1718059854419,-500.0,0.00029041,4]
[329010141,1718059854429,-163.62,0.00029041,4]
[329010142,1718059854439,-333.65247033,0.00029041,4]
[329010143,1718059854596,-166.34752967,0.00029041,4]
[329010144,1718059854607,-152.44747029,0.00029041,4]
[329010145,1718059854713,-259.34325549,0.00029041,4]
[329010146,1718059854893,-88.20927422,0.00029041,4]